[Event "Live Chess"]
[Site "Chess.com"]
[Date "2010.12.27"]
[Round "-"]
[White "BrazilCoup"]
[Black "hipposcottimus"]
[Result "1-0"]
[CurrentPosition "8/p1p1r1kp/2Kp4/2p5/8/2N5/PPP5/8 b - -"]
[Timezone "UTC"]
[ECO "C23"]
[ECOUrl "https://www.chess.com/openings/Bishops-Opening-2...Nc6"]
[UTCDate "2010.12.27"]
[UTCTime "23:30:13"]
[WhiteElo "1680"]
[BlackElo "1615"]
[TimeControl "60"]
[Termination "BrazilCoup won on time"]
[StartTime "23:30:13"]
[EndDate "2010.12.27"]
[EndTime "23:32:21"]
[Link "https://www.chess.com/game/live/81661011"]

1. e4 {[%clk 0:01:00]} 1... e5 {[%clk 0:01:00]} 2. Bc4 {[%clk 0:00:57.9]} 2... Nc6 {[%clk 0:00:59.7]} 3. f4 {[%clk 0:00:56.9]} 3... Nf6 {[%clk 0:00:58.6]} 4. Nc3 {[%clk 0:00:55.2]} 4... exf4 {[%clk 0:00:57.2]} 5. Nf3 {[%clk 0:00:54.7]} 5... d6 {[%clk 0:00:54.7]} 6. d4 {[%clk 0:00:54.2]} 6... Bg4 {[%clk 0:00:53.1]} 7. O-O {[%clk 0:00:53.2]} 7... Be7 {[%clk 0:00:52]} 8. Bxf4 {[%clk 0:00:50.4]} 8... O-O {[%clk 0:00:49.9]} 9. h3 {[%clk 0:00:49.6]} 9... Bh5 {[%clk 0:00:48.2]} 10. g4 {[%clk 0:00:48]} 10... Nxg4 {[%clk 0:00:47.5]} 11. hxg4 {[%clk 0:00:45.7]} 11... Bxg4 {[%clk 0:00:47.2]} 12. Rf2 {[%clk 0:00:44.9]} 12... g5 {[%clk 0:00:41.9]} 13. Be3 {[%clk 0:00:43.2]} 13... Qd7 {[%clk 0:00:35.6]} 14. Rg2 {[%clk 0:00:41.6]} 14... Bh5 {[%clk 0:00:34.2]} 15. Qf1 {[%clk 0:00:37.7]} 15... Kh8 {[%clk 0:00:31.6]} 16. Nxg5 {[%clk 0:00:36.7]} 16... Rg8 {[%clk 0:00:30.4]} 17. Nxf7+ {[%clk 0:00:35.1]} 17... Bxf7 {[%clk 0:00:26.1]} 18. Qxf7 {[%clk 0:00:35.1]} 18... Rxg2+ {[%clk 0:00:24.1]} 19. Kxg2 {[%clk 0:00:33.8]} 19... Rg8+ {[%clk 0:00:23.8]} 20. Kf2 {[%clk 0:00:32.6]} 20... Qh3 {[%clk 0:00:20.5]} 21. Rg1 {[%clk 0:00:29.8]} 21... Bh4+ {[%clk 0:00:20.1]} 22. Ke2 {[%clk 0:00:28.3]} 22... Rxg1 {[%clk 0:00:18.5]} 23. Qf8+ {[%clk 0:00:27.5]} 23... Rg8 {[%clk 0:00:16.8]} 24. Qf7 {[%clk 0:00:26.3]} 24... Qg2+ {[%clk 0:00:15.2]} 25. Kd3 {[%clk 0:00:25.6]} 25... Qf1+ {[%clk 0:00:12]} 26. Ne2 {[%clk 0:00:22.6]} 26... Qxf7 {[%clk 0:00:10.3]} 27. d5 {[%clk 0:00:22.6]} 27... Rf8 {[%clk 0:00:10]} 28. Bd4+ {[%clk 0:00:21.6]} 28... Kg8 {[%clk 0:00:07]} 29. Kc3 {[%clk 0:00:19.5]} 29... Bf6 {[%clk 0:00:06.7]} 30. dxc6 {[%clk 0:00:18.7]} 30... Bxd4+ {[%clk 0:00:04.4]} 31. Kxd4 {[%clk 0:00:17]} 31... Kg7 {[%clk 0:00:04.1]} 32. Bxf7 {[%clk 0:00:15.6]} 32... Rxf7 {[%clk 0:00:03.9]} 33. Nc3 {[%clk 0:00:15.2]} 33... bxc6 {[%clk 0:00:03.4]} 34. Na4 {[%clk 0:00:13]} 34... c5+ {[%clk 0:00:03.2]} 35. Kc4 {[%clk 0:00:11.5]} 35... Rf4 {[%clk 0:00:02.1]} 36. Kb5 {[%clk 0:00:11.5]} 36... Rxe4 {[%clk 0:00:01.6]} 37. Nc3 {[%clk 0:00:09.9]} 37... Re7 {[%clk 0:00:01.3]} 38. Kc6 {[%clk 0:00:09.9]} 1-0

[Event "Live Chess"]
[Site "Chess.com"]
[Date "2010.12.27"]
[Round "-"]
[White "hipposcottimus"]
[Black "monte21"]
[Result "1-0"]
[CurrentPosition "1r4kr/p1p3pp/8/8/3b4/1P6/PB1P1PPP/Q4K1R b - -"]
[Timezone "UTC"]
[ECO "C55"]
[ECOUrl "https://www.chess.com/openings/Italian-Game-Two-Knights-Defense"]
[UTCDate "2010.12.27"]
[UTCTime "23:14:21"]
[WhiteElo "1622"]
[BlackElo "1384"]
[TimeControl "60"]
[Termination "hipposcottimus won on time"]
[StartTime "23:14:21"]
[EndDate "2010.12.27"]
[EndTime "23:16:06"]
[Link "https://www.chess.com/game/live/81657233"]

1. e4 {[%clk 0:01:00]} 1... e5 {[%clk 0:01:00]} 2. Nf3 {[%clk 0:00:59.6]} 2... Nf6 {[%clk 0:00:59]} 3. Bc4 {[%clk 0:00:59.4]} 3... Nc6 {[%clk 0:00:57.5]} 4. Ng5 {[%clk 0:00:58.8]} 4... d5 {[%clk 0:00:55.6]} 5. exd5 {[%clk 0:00:58.5]} 5... Nxd5 {[%clk 0:00:54.6]} 6. Nxf7 {[%clk 0:00:56.6]} 6... Kxf7 {[%clk 0:00:53.1]} 7. Qf3+ {[%clk 0:00:55.7]} 7... Ke6 {[%clk 0:00:52.2]} 8. Nc3 {[%clk 0:00:53.7]} 8... Nb4 {[%clk 0:00:43.8]} 9. Ne4 {[%clk 0:00:51.5]} 9... Nxc2+ {[%clk 0:00:40.1]} 10. Kf1 {[%clk 0:00:49]} 10... Nxa1 {[%clk 0:00:39.1]} 11. Nc5+ {[%clk 0:00:47.6]} 11... Ke7 {[%clk 0:00:30.3]} 12. Bxd5 {[%clk 0:00:44]} 12... Kd6 {[%clk 0:00:18.5]} 13. Nxb7+ {[%clk 0:00:36.5]} 13... Bxb7 {[%clk 0:00:16.4]} 14. Bxb7 {[%clk 0:00:35.6]} 14... Rb8 {[%clk 0:00:15]} 15. Qd5+ {[%clk 0:00:34.3]} 15... Ke7 {[%clk 0:00:13.9]} 16. Qxe5+ {[%clk 0:00:33.5]} 16... Kf7 {[%clk 0:00:11.3]} 17. Bd5+ {[%clk 0:00:31.3]} 17... Qxd5 {[%clk 0:00:09]} 18. Qxd5+ {[%clk 0:00:30.3]} 18... Kg6 {[%clk 0:00:07.8]} 19. Qd3+ {[%clk 0:00:28.4]} 19... Kf7 {[%clk 0:00:06.4]} 20. Qb1 {[%clk 0:00:28]} 20... Kg8 {[%clk 0:00:04.6]} 21. Qxa1 {[%clk 0:00:26.8]} 21... Bc5 {[%clk 0:00:03.5]} 22. b3 {[%clk 0:00:26.2]} 22... Bd4 {[%clk 0:00:01.3]} 23. Bb2 {[%clk 0:00:25.1]} 1-0

[Event "Live Chess"]
[Site "Chess.com"]
[Date "2010.12.16"]
[Round "-"]
[White "pappyspud"]
[Black "hipposcottimus"]
[Result "1-0"]
[CurrentPosition "r3kb1r/pppb1qpp/2np1pn1/3N4/4PP2/1B2QN1P/PPPB2P1/2KR3R w kq -"]
[Timezone "UTC"]
[ECO "C22"]
[ECOUrl "https://www.chess.com/openings/Center-Game-Accepted-Paulsen-Attack"]
[UTCDate "2010.12.16"]
[UTCTime "07:22:20"]
[WhiteElo "2093"]
[BlackElo "1619"]
[TimeControl "60"]
[Termination "pappyspud won by resignation"]
[StartTime "07:22:20"]
[EndDate "2010.12.16"]
[EndTime "07:23:35"]
[Link "https://www.chess.com/game/live/77793937"]

1. e4 {[%clk 0:01:00]} 1... e5 {[%clk 0:01:00]} 2. d4 {[%clk 0:01:00]} 2... exd4 {[%clk 0:00:57.9]} 3. Qxd4 {[%clk 0:01:00]} 3... Nc6 {[%clk 0:00:57.5]} 4. Qe3 {[%clk 0:00:59.5]} 4... d6 {[%clk 0:00:57.2]} 5. Bb5 {[%clk 0:00:58.4]} 5... f6 {[%clk 0:00:54.6]} 6. Nc3 {[%clk 0:00:57.7]} 6... Ne7 {[%clk 0:00:51.5]} 7. Ba4 {[%clk 0:00:55.1]} 7... Bd7 {[%clk 0:00:49.5]} 8. Bb3 {[%clk 0:00:52.7]} 8... Ne5 {[%clk 0:00:45.6]} 9. Bd2 {[%clk 0:00:50.9]} 9... N7c6 {[%clk 0:00:44.8]} 10. h3 {[%clk 0:00:48.8]} 10... Be7 {[%clk 0:00:44.3]} 11. f4 {[%clk 0:00:47.9]} 11... Ng6 {[%clk 0:00:31.2]} 12. O-O-O {[%clk 0:00:45.3]} 12... Bf8 {[%clk 0:00:17.2]} 13. Nf3 {[%clk 0:00:43.8]} 13... Qe7 {[%clk 0:00:15.8]} 14. Nd5 {[%clk 0:00:40]} 14... Qf7 {[%clk 0:00:12.6]} 1-0

[Event "Live Chess"]
[Site "Chess.com"]
[Date "2010.12.16"]
[Round "-"]
[White "bajobajo"]
[Black "hipposcottimus"]
[Result "1-0"]
[CurrentPosition "5Qk1/P5pp/4p3/2PpN3/3PpP1q/4P2P/4n1PK/1R6 b - -"]
[Timezone "UTC"]
[ECO "D02"]
[ECOUrl "https://www.chess.com/openings/Queens-Pawn-Opening-Zukertort-Variation-2...c6-3.Bf4"]
[UTCDate "2010.12.16"]
[UTCTime "07:19:40"]
[WhiteElo "1774"]
[BlackElo "1620"]
[TimeControl "60"]
[Termination "bajobajo won on time"]
[StartTime "07:19:40"]
[EndDate "2010.12.16"]
[EndTime "07:21:54"]
[Link "https://www.chess.com/game/live/77793435"]

1. d4 {[%clk 0:01:00]} 1... d5 {[%clk 0:01:00]} 2. Nf3 {[%clk 0:01:00]} 2... c6 {[%clk 0:00:59.7]} 3. Bf4 {[%clk 0:01:00]} 3... Nd7 {[%clk 0:00:59.5]} 4. e3 {[%clk 0:01:00]} 4... f5 {[%clk 0:00:59.1]} 5. h3 {[%clk 0:01:00]} 5... e6 {[%clk 0:00:58.5]} 6. Nbd2 {[%clk 0:00:59.6]} 6... Ngf6 {[%clk 0:00:58.2]} 7. a3 {[%clk 0:00:58.4]} 7... Nb6 {[%clk 0:00:57.2]} 8. c3 {[%clk 0:00:57.3]} 8... Bd6 {[%clk 0:00:56.9]} 9. Bxd6 {[%clk 0:00:55.4]} 9... Qxd6 {[%clk 0:00:56.7]} 10. Be2 {[%clk 0:00:55.2]} 10... O-O {[%clk 0:00:55.9]} 11. O-O {[%clk 0:00:54.8]} 11... Ne4 {[%clk 0:00:54]} 12. Nh2 {[%clk 0:00:53.9]} 12... Ng5 {[%clk 0:00:51.4]} 13. f4 {[%clk 0:00:52.9]} 13... Ne4 {[%clk 0:00:49.7]} 14. Nxe4 {[%clk 0:00:51.6]} 14... fxe4 {[%clk 0:00:48.4]} 15. Bg4 {[%clk 0:00:50.7]} 15... Nd7 {[%clk 0:00:44]} 16. Be2 {[%clk 0:00:45.5]} 16... Nf6 {[%clk 0:00:43.6]} 17. c4 {[%clk 0:00:44.7]} 17... b6 {[%clk 0:00:41.6]} 18. b4 {[%clk 0:00:43.1]} 18... a6 {[%clk 0:00:40]} 19. c5 {[%clk 0:00:42.3]} 19... bxc5 {[%clk 0:00:38.4]} 20. bxc5 {[%clk 0:00:42.3]} 20... Qc7 {[%clk 0:00:37.1]} 21. Rb1 {[%clk 0:00:41]} 21... Bd7 {[%clk 0:00:31.3]} 22. Qb3 {[%clk 0:00:40.3]} 22... Qd8 {[%clk 0:00:28.1]} 23. Qb7 {[%clk 0:00:37.9]} 23... Qe7 {[%clk 0:00:26.8]} 24. Ng4 {[%clk 0:00:35]} 24... Rab8 {[%clk 0:00:25.2]} 25. Qxa6 {[%clk 0:00:33.2]} 25... Bc8 {[%clk 0:00:21.7]} 26. Qxc6 {[%clk 0:00:30.6]} 26... Rxb1 {[%clk 0:00:20.9]} 27. Rxb1 {[%clk 0:00:28.7]} 27... Bd7 {[%clk 0:00:20.6]} 28. Qb6 {[%clk 0:00:24.4]} 28... Nh5 {[%clk 0:00:19]} 29. Ne5 {[%clk 0:00:22.2]} 29... Nf6 {[%clk 0:00:16.4]} 30. a4 {[%clk 0:00:15.5]} 30... Be8 {[%clk 0:00:13.9]} 31. a5 {[%clk 0:00:14.5]} 31... Bh5 {[%clk 0:00:12]} 32. Bxh5 {[%clk 0:00:12.3]} 32... Nxh5 {[%clk 0:00:10.7]} 33. a6 {[%clk 0:00:12.3]} 33... Qh4 {[%clk 0:00:09.4]} 34. a7 {[%clk 0:00:11.1]} 34... Ng3 {[%clk 0:00:07.9]} 35. Qb8 {[%clk 0:00:07.5]} 35... Ne2+ {[%clk 0:00:06.7]} 36. Kh1 {[%clk 0:00:05.9]} 36... Ng3+ {[%clk 0:00:03.8]} 37. Kh2 {[%clk 0:00:05.5]} 37... Ne2 {[%clk 0:00:02.2]} 38. Qxf8+ {[%clk 0:00:02.9]} 1-0

[Event "Live Chess"]
[Site "Chess.com"]
[Date "2010.12.16"]
[Round "-"]
[White "hipposcottimus"]
[Black "cleveland"]
[Result "0-1"]
[CurrentPosition "R7/3p1k2/P3p1p1/5pP1/8/7P/6PK/4qq2 w - -"]
[Timezone "UTC"]
[ECO "B00"]
[ECOUrl "https://www.chess.com/openings/Kings-Pawn-Opening-Barnes-Defense-2.d4"]
[UTCDate "2010.12.16"]
[UTCTime "07:09:26"]
[WhiteElo "1461"]
[BlackElo "1353"]
[TimeControl "360"]
[Termination "cleveland won on time"]
[StartTime "07:09:26"]
[EndDate "2010.12.16"]
[EndTime "07:16:32"]
[Link "https://www.chess.com/game/live/77791124"]

1. e4 {[%clk 0:06:00]} 1... f6 {[%clk 0:06:00]} 2. d4 {[%clk 0:05:59.2]} 2... c6 {[%clk 0:05:58.1]} 3. Be2 {[%clk 0:05:58.1]} 3... g6 {[%clk 0:05:55.9]} 4. Nf3 {[%clk 0:05:56.4]} 4... b6 {[%clk 0:05:53.7]} 5. e5 {[%clk 0:05:55.7]} 5... f5 {[%clk 0:05:51.9]} 6. Bg5 {[%clk 0:05:50.9]} 6... h6 {[%clk 0:05:49.4]} 7. O-O {[%clk 0:05:46.5]} 7... hxg5 {[%clk 0:05:47.8]} 8. Nxg5 {[%clk 0:05:46.2]} 8... Bh6 {[%clk 0:05:43.9]} 9. Qd2 {[%clk 0:05:41.3]} 9... e6 {[%clk 0:05:40.2]} 10. f4 {[%clk 0:05:38.4]} 10... Bxg5 {[%clk 0:05:37.8]} 11. fxg5 {[%clk 0:05:37.8]} 11... Qe7 {[%clk 0:05:30.8]} 12. Nc3 {[%clk 0:05:37.3]} 12... Qh7 {[%clk 0:05:29.1]} 13. h3 {[%clk 0:05:29.8]} 13... Ba6 {[%clk 0:05:26.8]} 14. Rae1 {[%clk 0:05:21.4]} 14... Ne7 {[%clk 0:05:18]} 15. Bxa6 {[%clk 0:05:19.9]} 15... Nxa6 {[%clk 0:05:16.4]} 16. b4 {[%clk 0:05:17.5]} 16... Nc7 {[%clk 0:05:14.8]} 17. b5 {[%clk 0:05:16]} 17... Ncd5 {[%clk 0:05:11.2]} 18. Nxd5 {[%clk 0:05:13.6]} 18... cxd5 {[%clk 0:05:09.7]} 19. Qe2 {[%clk 0:05:08.3]} 19... Qh5 {[%clk 0:05:05.7]} 20. Qd3 {[%clk 0:05:05.5]} 20... Rc8 {[%clk 0:05:03.7]} 21. Rc1 {[%clk 0:05:03.1]} 21... Nc6 {[%clk 0:05:01]} 22. c4 {[%clk 0:05:01.8]} 22... Ne7 {[%clk 0:04:55.1]} 23. c5 {[%clk 0:04:57]} 23... Kf7 {[%clk 0:04:50.6]} 24. cxb6 {[%clk 0:04:51.5]} 24... axb6 {[%clk 0:04:48.4]} 25. Qa3 {[%clk 0:04:31.7]} 25... Ra8 {[%clk 0:04:46.1]} 26. Qd6 {[%clk 0:04:28.7]} 26... Rhd8 {[%clk 0:04:39]} 27. Qxb6 {[%clk 0:04:26.2]} 27... Rdb8 {[%clk 0:04:35.8]} 28. Qd6 {[%clk 0:04:22.4]} 28... Rd8 {[%clk 0:04:32.3]} 29. b6 {[%clk 0:04:20.5]} 29... Nc8 {[%clk 0:04:30.6]} 30. Rxc8 {[%clk 0:04:12.5]} 30... Raxc8 {[%clk 0:04:28.3]} 31. b7 {[%clk 0:04:10.4]} 31... Rb8 {[%clk 0:04:26.8]} 32. Qc7 {[%clk 0:03:59.9]} 32... Qe2 {[%clk 0:04:22.2]} 33. Rc1 {[%clk 0:03:57.7]} 33... Qe3+ {[%clk 0:04:18]} 34. Kf1 {[%clk 0:03:55]} 34... Qxd4 {[%clk 0:04:16]} 35. Qc8 {[%clk 0:03:53.5]} 35... Qxe5 {[%clk 0:04:07]} 36. a4 {[%clk 0:03:41.5]} 36... Qf4+ {[%clk 0:04:01.4]} 37. Kg1 {[%clk 0:03:39.7]} 37... Qb4 {[%clk 0:03:51.9]} 38. Rc7 {[%clk 0:03:30.6]} 38... Qd4+ {[%clk 0:03:40.6]} 39. Kh2 {[%clk 0:03:28.2]} 39... Qe5+ {[%clk 0:03:35.1]} 40. Kg1 {[%clk 0:03:25]} 40... Rdxc8 {[%clk 0:03:13.7]} 41. bxc8=Q {[%clk 0:03:08.3]} 41... Rxc8 {[%clk 0:03:12.1]} 42. Rxc8 {[%clk 0:03:07.6]} 42... Qe1+ {[%clk 0:03:09.8]} 43. Kh2 {[%clk 0:03:05.6]} 43... Qe5+ {[%clk 0:03:06.5]} 44. Kg1 {[%clk 0:03:03.7]} 44... d4 {[%clk 0:03:05.4]} 45. Ra8 {[%clk 0:03:00.4]} 45... d3 {[%clk 0:03:02.9]} 46. a5 {[%clk 0:02:59.5]} 46... d2 {[%clk 0:03:00.9]} 47. Kf2 {[%clk 0:02:37.5]} 47... d1=Q {[%clk 0:02:53.4]} 48. a6 {[%clk 0:02:35.8]} 48... Qee2+ {[%clk 0:02:51.6]} 49. Kg3 {[%clk 0:02:33.7]} 49... Qde1+ {[%clk 0:02:50.2]} 50. Kh2 {[%clk 0:02:31.3]} 50... Q2f1 {[%clk 0:02:48]} 0-1

[Event "Live Chess"]
[Site "Chess.com"]
[Date "2010.12.16"]
[Round "-"]
[White "cleveland"]
[Black "hipposcottimus"]
[Result "0-1"]
[CurrentPosition "4r2k/pp5p/4N1p1/3P4/6p1/1P3pPq/P2P1P1P/4R1K1 w - -"]
[Timezone "UTC"]
[ECO "A01"]
[ECOUrl "https://www.chess.com/openings/Nimzowitsch-Larsen-Attack-Modern-Variation"]
[UTCDate "2010.12.16"]
[UTCTime "07:03:30"]
[WhiteElo "1341"]
[BlackElo "1471"]
[TimeControl "360"]
[Termination "hipposcottimus won by resignation"]
[StartTime "07:03:30"]
[EndDate "2010.12.16"]
[EndTime "07:06:23"]
[Link "https://www.chess.com/game/live/77790411"]

1. b3 {[%clk 0:06:00]} 1... e5 {[%clk 0:06:00]} 2. Ba3 {[%clk 0:05:58.4]} 2... e4 {[%clk 0:05:59.7]} 3. Bxf8 {[%clk 0:05:56.4]} 3... Kxf8 {[%clk 0:05:59.5]} 4. g3 {[%clk 0:05:54.8]} 4... d5 {[%clk 0:05:59.1]} 5. Bh3 {[%clk 0:05:53.1]} 5... f5 {[%clk 0:05:58.2]} 6. e3 {[%clk 0:05:51.2]} 6... Nf6 {[%clk 0:05:57.9]} 7. c3 {[%clk 0:05:49.5]} 7... Kf7 {[%clk 0:05:57.5]} 8. Ne2 {[%clk 0:05:47.1]} 8... Re8 {[%clk 0:05:57.1]} 9. Nd4 {[%clk 0:05:45.2]} 9... Kg8 {[%clk 0:05:56.7]} 10. Na3 {[%clk 0:05:43]} 10... c5 {[%clk 0:05:51.1]} 11. Ne2 {[%clk 0:05:40.5]} 11... d4 {[%clk 0:05:50]} 12. cxd4 {[%clk 0:05:38.9]} 12... cxd4 {[%clk 0:05:49]} 13. Nxd4 {[%clk 0:05:37.8]} 13... Nc6 {[%clk 0:05:48.7]} 14. Rc1 {[%clk 0:05:34.2]} 14... Nxd4 {[%clk 0:05:47.2]} 15. exd4 {[%clk 0:05:31.3]} 15... Ng4 {[%clk 0:05:46.9]} 16. Bxg4 {[%clk 0:05:29.8]} 16... fxg4 {[%clk 0:05:45.6]} 17. O-O {[%clk 0:05:27.8]} 17... Qd5 {[%clk 0:05:39.9]} 18. Nc2 {[%clk 0:05:22.5]} 18... Qh5 {[%clk 0:05:38.1]} 19. Ne3 {[%clk 0:05:15.7]} 19... Rf8 {[%clk 0:05:35.3]} 20. Ng2 {[%clk 0:05:12.1]} 20... Rf3 {[%clk 0:05:31.9]} 21. Qe2 {[%clk 0:05:09.1]} 21... Bf5 {[%clk 0:05:26.5]} 22. Rc3 {[%clk 0:05:06.4]} 22... Rf8 {[%clk 0:05:23.6]} 23. Rxf3 {[%clk 0:05:04.9]} 23... exf3 {[%clk 0:05:20.1]} 24. Qc4+ {[%clk 0:04:55.3]} 24... Kh8 {[%clk 0:05:16.3]} 25. Nf4 {[%clk 0:04:53.5]} 25... Qh6 {[%clk 0:05:12]} 26. Re1 {[%clk 0:04:50.1]} 26... g6 {[%clk 0:05:09.5]} 27. Qe6 {[%clk 0:04:43.9]} 27... Bxe6 {[%clk 0:05:04.3]} 28. Nxe6 {[%clk 0:04:26.1]} 28... Re8 {[%clk 0:05:02.4]} 29. d5 {[%clk 0:04:20.8]} 29... Qh3 {[%clk 0:05:01.2]} 0-1

[Event "Live Chess"]
[Site "Chess.com"]
[Date "2010.12.16"]
[Round "-"]
[White "hipposcottimus"]
[Black "cleveland"]
[Result "1/2-1/2"]
[CurrentPosition "8/6k1/4K3/7Q/8/8/8/8 w - -"]
[Timezone "UTC"]
[ECO "B00"]
[ECOUrl "https://www.chess.com/openings/Owens-Defense-Guatemala-Defense"]
[UTCDate "2010.12.16"]
[UTCTime "06:51:20"]
[WhiteElo "1466"]
[BlackElo "1346"]
[TimeControl "360"]
[Termination "Game drawn by insufficient material"]
[StartTime "06:51:20"]
[EndDate "2010.12.16"]
[EndTime "07:02:24"]
[Link "https://www.chess.com/game/live/77788254"]

1. e4 {[%clk 0:06:00]} 1... b6 {[%clk 0:06:00]} 2. d4 {[%clk 0:05:57.7]} 2... Ba6 {[%clk 0:05:58.6]} 3. d5 {[%clk 0:05:56.9]} 3... Bxf1 {[%clk 0:05:56.7]} 4. Kxf1 {[%clk 0:05:56.1]} 4... g6 {[%clk 0:05:55.2]} 5. f4 {[%clk 0:05:55.1]} 5... Bh6 {[%clk 0:05:53.5]} 6. Nf3 {[%clk 0:05:53.8]} 6... d6 {[%clk 0:05:51.6]} 7. Kf2 {[%clk 0:05:51.4]} 7... Nd7 {[%clk 0:05:49.6]} 8. Rf1 {[%clk 0:05:48.9]} 8... f6 {[%clk 0:05:37.7]} 9. Kg1 {[%clk 0:05:43.2]} 9... Kf8 {[%clk 0:05:18.3]} 10. Nc3 {[%clk 0:05:39.2]} 10... a6 {[%clk 0:05:16]} 11. a4 {[%clk 0:05:35.6]} 11... Rc8 {[%clk 0:05:12.8]} 12. a5 {[%clk 0:05:32.3]} 12... b5 {[%clk 0:05:11]} 13. b4 {[%clk 0:05:30.4]} 13... Qe8 {[%clk 0:05:04.7]} 14. Nh4 {[%clk 0:05:26.5]} 14... Bg7 {[%clk 0:05:01]} 15. f5 {[%clk 0:05:22.4]} 15... g5 {[%clk 0:04:59.5]} 16. Nf3 {[%clk 0:05:11.8]} 16... Ne5 {[%clk 0:04:57.3]} 17. Nxg5 {[%clk 0:05:04.9]} 17... fxg5 {[%clk 0:04:53.8]} 18. Bxg5 {[%clk 0:05:04.1]} 18... Bf6 {[%clk 0:04:52.6]} 19. Bf4 {[%clk 0:04:48.2]} 19... h6 {[%clk 0:04:45]} 20. Ne2 {[%clk 0:04:34.5]} 20... Ng4 {[%clk 0:04:41.4]} 21. Ng3 {[%clk 0:04:31.5]} 21... Bxa1 {[%clk 0:04:39.4]} 22. Qxa1 {[%clk 0:04:30.7]} 22... N4f6 {[%clk 0:04:36.8]} 23. e5 {[%clk 0:04:21.4]} 23... dxe5 {[%clk 0:04:34.7]} 24. Bxe5 {[%clk 0:04:15.2]} 24... Rh7 {[%clk 0:04:30.5]} 25. Qd4 {[%clk 0:03:46.1]} 25... Qf7 {[%clk 0:04:25]} 26. c4 {[%clk 0:03:22.8]} 26... Rd8 {[%clk 0:04:21.7]} 27. Bxc7 {[%clk 0:03:12.9]} 27... Rc8 {[%clk 0:04:13.7]} 28. Qb6 {[%clk 0:03:06.7]} 28... e6 {[%clk 0:04:04]} 29. dxe6 {[%clk 0:03:01.3]} 29... Qxc7 {[%clk 0:04:01.9]} 30. Qxa6 {[%clk 0:02:52.8]} 30... Qb7 {[%clk 0:03:55.8]} 31. Qd6+ {[%clk 0:02:45.5]} 31... Qe7 {[%clk 0:03:50.7]} 32. c5 {[%clk 0:02:40.4]} 32... Qxd6 {[%clk 0:03:49.2]} 33. cxd6 {[%clk 0:02:39.5]} 33... Ne7 {[%clk 0:03:36.5]} 34. a6 {[%clk 0:02:28.9]} 34... Ra8 {[%clk 0:03:33.6]} 35. d7 {[%clk 0:02:23.3]} 35... Nc6 {[%clk 0:03:28.4]} 36. Rd1 {[%clk 0:01:47]} 36... Ke7 {[%clk 0:03:21.9]} 37. Ne2 {[%clk 0:01:37.2]} 37... Rhh8 {[%clk 0:03:18]} 38. Nd4 {[%clk 0:01:35]} 38... Nxd4 {[%clk 0:03:16.6]} 39. Rxd4 {[%clk 0:01:33.7]} 39... Rxa6 {[%clk 0:03:12.7]} 40. h4 {[%clk 0:01:25.6]} 40... Rd8 {[%clk 0:03:11]} 41. g4 {[%clk 0:01:21]} 41... Nh7 {[%clk 0:03:05.4]} 42. Rd5 {[%clk 0:01:16.9]} 42... Ra1+ {[%clk 0:03:02]} 43. Kf2 {[%clk 0:01:13.7]} 43... Ra2+ {[%clk 0:03:00.5]} 44. Ke3 {[%clk 0:01:11.7]} 44... Ra3+ {[%clk 0:02:59.1]} 45. Kd4 {[%clk 0:01:09]} 45... Rh3 {[%clk 0:02:57.4]} 46. g5 {[%clk 0:01:01.3]} 46... Rxh4+ {[%clk 0:02:56]} 47. Ke5 {[%clk 0:01:00.3]} 47... Nxg5 {[%clk 0:02:53.8]} 48. f6+ {[%clk 0:00:57.6]} 48... Kf8 {[%clk 0:02:37]} 49. e7+ {[%clk 0:00:54.7]} 49... Kf7 {[%clk 0:02:29.7]} 50. exd8=Q {[%clk 0:00:48.1]} 50... Re4+ {[%clk 0:02:28.1]} 51. Kd6 {[%clk 0:00:44.2]} 51... Re6+ {[%clk 0:02:22.8]} 52. Kc5 {[%clk 0:00:43.2]} 52... Ne4+ {[%clk 0:02:18.6]} 53. Kxb5 {[%clk 0:00:38.5]} 53... Nc3+ {[%clk 0:02:14.9]} 54. Kc4 {[%clk 0:00:35.2]} 54... Nxd5 {[%clk 0:02:13]} 55. Kxd5 {[%clk 0:00:33]} 55... Rxf6 {[%clk 0:02:11.7]} 56. Qxf6+ {[%clk 0:00:31.1]} 56... Kxf6 {[%clk 0:02:10.3]} 57. d8=Q+ {[%clk 0:00:29.2]} 57... Kf5 {[%clk 0:02:08.5]} 58. Qh4 {[%clk 0:00:26.2]} 58... Kg6 {[%clk 0:02:06.6]} 59. b5 {[%clk 0:00:25.1]} 59... Kf7 {[%clk 0:02:02.6]} 60. b6 {[%clk 0:00:24.7]} 60... Kg6 {[%clk 0:01:58.7]} 61. Qxh6+ {[%clk 0:00:24.2]} 61... Kxh6 {[%clk 0:01:56.9]} 62. b7 {[%clk 0:00:23.4]} 62... Kg6 {[%clk 0:01:54.5]} 63. b8=Q {[%clk 0:00:21.5]} 63... Kf6 {[%clk 0:01:52.9]} 64. Qe5+ {[%clk 0:00:19.6]} 64... Kg6 {[%clk 0:01:50.4]} 65. Ke6 {[%clk 0:00:18.2]} 65... Kh6 {[%clk 0:01:46.5]} 66. Qf5 {[%clk 0:00:15.1]} 66... Kg7 {[%clk 0:01:44.4]} 67. Qf6+ {[%clk 0:00:11.1]} 67... Kh7 {[%clk 0:01:42.8]} 68. Ke7 {[%clk 0:00:08.9]} 68... Kg8 {[%clk 0:01:36.8]} 69. Qf7+ {[%clk 0:00:07]} 69... Kh8 {[%clk 0:01:35.2]} 70. Qh5+ {[%clk 0:00:04.4]} 70... Kg8 {[%clk 0:01:33.5]} 71. Ke6 {[%clk 0:00:03.2]} 71... Kg7 {[%clk 0:01:28.5]} 1/2-1/2